[Event "Titled Tuesday Blitz November 22 Late 2022"]
[White "Djordjevic, Vuk"]
[Black "Arngrimsson, Dagur"]
[WhiteFideId "902098"]
[BlackFideId "2301288"]
[WhiteElo "2456"]
[BlackElo "2286"]
[Result "1-0"]
[Round "10"]
[TimeControl "180+1"]
[Date "2022.11.22"]
[WhiteClock "0:00:26"]
[BlackClock "0:01:01"]

1. d4 {[%clk 0:03:00]}  d5 {[%clk 0:02:59]} 2. Bf4 {[%clk 0:03:00]}  Nf6 {[%clk 0:02:59]} 3. e3 {[%clk 0:03:00]}  Bg4 {[%clk 0:02:59]} 4. f3 {[%clk 0:02:55]}  Bf5 {[%clk 0:02:59]} 5. g4 {[%clk 0:02:55]}  Bg6 {[%clk 0:02:59]} 6. h4 {[%clk 0:02:55]}  h5 {[%clk 0:02:59]} 7. g5 {[%clk 0:02:55]}  Nfd7 {[%clk 0:02:59]} 8. c4 {[%clk 0:02:55]}  c5 {[%clk 0:02:58]} 9. cxd5 {[%clk 0:02:42]}  cxd4 {[%clk 0:02:58]} 10. Qxd4 {[%clk 0:02:40]}  e5 {[%clk 0:02:46]} 11. dxe6 {[%clk 0:02:39]}  fxe6 {[%clk 0:02:47]} 12. Nc3 {[%clk 0:01:47]}  e5 {[%clk 0:02:41]} 13. Qd5 {[%clk 0:01:47]}  exf4 {[%clk 0:02:34]} 14. Qe6+ {[%clk 0:01:47]}  Qe7 {[%clk 0:02:34]} 15. Qxg6+ {[%clk 0:01:47]}  Kd8 {[%clk 0:02:33]} 16. e4 {[%clk 0:01:43]}  Nc6 {[%clk 0:02:30]} 17. O-O-O {[%clk 0:01:37]}  Rc8 {[%clk 0:02:24]} 18. Bh3 {[%clk 0:01:17]}  Ne5 {[%clk 0:02:18]} 19. Qf5 {[%clk 0:01:11]}  g6 {[%clk 0:02:07]} 20. Qxf4 {[%clk 0:01:10]}  Bg7 {[%clk 0:01:49]} 21. Bxd7 {[%clk 0:00:56]}  Nxd7 {[%clk 0:01:50]} 22. Ne2 {[%clk 0:00:56]}  Rf8 {[%clk 0:01:43]} 23. Qe3 {[%clk 0:00:55]}  Be5 {[%clk 0:01:37]} 24. f4 {[%clk 0:00:50]}  Rxc3+ {[%clk 0:01:37]} 25. bxc3 {[%clk 0:00:50]}  Rxf4 {[%clk 0:01:20]} 26. Rxd7+ {[%clk 0:00:28]}  Kxd7 {[%clk 0:01:16]} 27. Nxf4 {[%clk 0:00:28]}  Qa3+ {[%clk 0:01:12]} 28. Kb1 {[%clk 0:00:28]}  Bxc3 {[%clk 0:01:07]} 29. Rd1+ {[%clk 0:00:28]}  Ke8 {[%clk 0:01:05]} 30. Nd3 {[%clk 0:00:28]}  Qd6 {[%clk 0:01:01]} 31. Qc5 {[%clk 0:00:26]} 1-0


[Site "https://www.chess.com"]

[Event "Titled Tuesday Blitz November 22 Late 2022"]
[White "Dudzinski, Pawel"]
[Black "Simonovic, Miroslav"]
[WhiteFideId "1117890"]
[BlackFideId "919152"]
[WhiteElo "2086"]
[BlackElo "2043"]
[Result "1-0"]
[Round "10"]
[TimeControl "180+1"]
[Date "2022.11.23"]
[WhiteClock "0:00:11"]
[BlackClock "0:00:01"]

1. e4 {[%clk 0:03:00]}  c5 {[%clk 0:03:00]} 2. Nc3 {[%clk 0:03:00]}  Nc6 {[%clk 0:03:00]} 3. g3 {[%clk 0:02:59]}  g6 {[%clk 0:03:00]} 4. Bg2 {[%clk 0:03:00]}  Bg7 {[%clk 0:03:01]} 5. d3 {[%clk 0:03:00]}  e5 {[%clk 0:03:01]} 6. Be3 {[%clk 0:03:01]}  d6 {[%clk 0:03:01]} 7. Qd2 {[%clk 0:03:01]}  h6 {[%clk 0:03:01]} 8. f4 {[%clk 0:03:01]}  Nge7 {[%clk 0:03:01]} 9. fxe5 {[%clk 0:03:00]}  Nxe5 {[%clk 0:03:00]} 10. Nf3 {[%clk 0:02:58]}  b6 {[%clk 0:02:54]} 11. Nxe5 {[%clk 0:02:55]}  dxe5 {[%clk 0:02:55]} 12. Nd5 {[%clk 0:02:55]}  Be6 {[%clk 0:02:50]} 13. c4 {[%clk 0:02:54]}  Qd7 {[%clk 0:02:13]} 14. O-O {[%clk 0:02:52]}  Bxd5 {[%clk 0:01:51]} 15. cxd5 {[%clk 0:02:49]}  Rd8 {[%clk 0:01:35]} 16. b4 {[%clk 0:02:48]}  cxb4 {[%clk 0:01:32]} 17. Qxb4 {[%clk 0:02:49]}  O-O {[%clk 0:01:31]} 18. a4 {[%clk 0:02:41]}  f5 {[%clk 0:01:30]} 19. Bh3 {[%clk 0:02:24]}  Qd6 {[%clk 0:01:17]} 20. Qxd6 {[%clk 0:02:23]}  Rxd6 {[%clk 0:01:18]} 21. a5 {[%clk 0:02:23]}  g5 {[%clk 0:01:12]} 22. axb6 {[%clk 0:02:18]}  axb6 {[%clk 0:01:11]} 23. Ra6 {[%clk 0:02:00]}  f4 {[%clk 0:01:00]} 24. Rxb6 {[%clk 0:01:47]}  Rxb6 {[%clk 0:00:51]} 25. Bxb6 {[%clk 0:01:47]}  Rb8 {[%clk 0:00:43]} 26. Bc7 {[%clk 0:01:32]}  Rb3 {[%clk 0:00:37]} 27. d6 {[%clk 0:01:30]}  Rxd3 {[%clk 0:00:31]} 28. dxe7 {[%clk 0:01:29]}  Kf7 {[%clk 0:00:31]} 29. Bd8 {[%clk 0:01:23]}  Bf6 {[%clk 0:00:31]} 30. gxf4 {[%clk 0:01:19]}  exf4 {[%clk 0:00:22]} 31. Bg4 {[%clk 0:01:03]}  Bxe7 {[%clk 0:00:20]} 32. Bb6 {[%clk 0:01:03]}  Kg6 {[%clk 0:00:16]} 33. Rc1 {[%clk 0:00:54]}  Rd6 {[%clk 0:00:12]} 34. Bc7 {[%clk 0:00:44]}  Rd2 {[%clk 0:00:09]} 35. Rc6+ {[%clk 0:00:41]}  Kf7 {[%clk 0:00:09]} 36. Bh5+ {[%clk 0:00:41]}  Kf8 {[%clk 0:00:08]} 37. Be5 {[%clk 0:00:36]}  Ra2 {[%clk 0:00:05]} 38. Rc8+ {[%clk 0:00:30]}  Bd8 {[%clk 0:00:05]} 39. Rxd8+ {[%clk 0:00:30]}  Ke7 {[%clk 0:00:06]} 40. Re8+ {[%clk 0:00:30]}  Kd7 {[%clk 0:00:06]} 41. Rh8 {[%clk 0:00:29]}  Ra4 {[%clk 0:00:05]} 42. Bg6 {[%clk 0:00:25]}  Ke6 {[%clk 0:00:05]} 43. Bg7 {[%clk 0:00:24]}  g4 {[%clk 0:00:05]} 44. Bxh6 {[%clk 0:00:23]}  g3 {[%clk 0:00:05]} 45. Bxf4 {[%clk 0:00:20]}  gxh2+ {[%clk 0:00:04]} 46. Kxh2 {[%clk 0:00:19]}  Ra2+ {[%clk 0:00:04]} 47. Kg3 {[%clk 0:00:19]}  Kf6 {[%clk 0:00:04]} 48. Bf5 {[%clk 0:00:18]}  Ra3+ {[%clk 0:00:04]} 49. Kg4 {[%clk 0:00:18]}  Ra1 {[%clk 0:00:04]} 50. Rh6+ {[%clk 0:00:19]}  Kg7 {[%clk 0:00:04]} 51. Rb6 {[%clk 0:00:18]}  Rg1+ {[%clk 0:00:03]} 52. Bg3 {[%clk 0:00:17]}  Rf1 {[%clk 0:00:03]} 53. Rb7+ {[%clk 0:00:16]}  Kf8 {[%clk 0:00:04]} 54. e5 {[%clk 0:00:15]}  Ke8 {[%clk 0:00:04]} 55. e6 {[%clk 0:00:14]}  Rg1 {[%clk 0:00:04]} 56. Bg6+ {[%clk 0:00:13]}  Kd8 {[%clk 0:00:04]} 57. e7+ {[%clk 0:00:13]}  Kc8 {[%clk 0:00:04]} 58. e8=Q+ {[%clk 0:00:12]}  Kxb7 {[%clk 0:00:04]} 59. Qd7+ {[%clk 0:00:13]}  Ka6 {[%clk 0:00:03]} 60. Qc6+ {[%clk 0:00:13]}  Ka5 {[%clk 0:00:03]} 61. Qc5+ {[%clk 0:00:13]}  Ka4 {[%clk 0:00:03]} 62. Qxg1 {[%clk 0:00:14]}  Kb3 {[%clk 0:00:03]} 63. Qc5 {[%clk 0:00:13]}  Kb2 {[%clk 0:00:02]} 64. Qc4 {[%clk 0:00:11]}  Ka1 {[%clk 0:00:01]} 65. Qb5 {[%clk 0:00:09]}  Ka2 {[%clk 0:00:01]} 66. Qb4 {[%clk 0:00:10]}  Ka1 {[%clk 0:00:01]} 67. Qb1# {[%clk 0:00:11]} 1-0


[Site "https://www.chess.com"]

[Event "Titled Tuesday Blitz November 22 Late 2022"]
[White "Fernandez De La Vara, Arnaldo"]
[Black "Toniutti, Ezio"]
[WhiteFideId "3518388"]
[BlackFideId "113034"]
[WhiteElo "2387"]
[BlackElo "2215"]
[Result "0-1"]
[Round "10"]
[TimeControl "180+1"]
[Date "2022.11.23"]
[WhiteClock "0:00:02"]
[BlackClock "0:00:05"]

1. Nf3 {[%clk 0:03:00]}  d5 {[%clk 0:02:57]} 2. g3 {[%clk 0:03:01]}  Nf6 {[%clk 0:02:57]} 3. Bg2 {[%clk 0:03:02]}  c6 {[%clk 0:02:57]} 4. O-O {[%clk 0:03:02]}  Bf5 {[%clk 0:02:57]} 5. d3 {[%clk 0:03:03]}  e6 {[%clk 0:02:57]} 6. Nbd2 {[%clk 0:03:03]}  Be7 {[%clk 0:02:57]} 7. Qe1 {[%clk 0:03:04]}  h6 {[%clk 0:02:56]} 8. e4 {[%clk 0:03:05]}  Bh7 {[%clk 0:02:57]} 9. Qe2 {[%clk 0:03:04]}  O-O {[%clk 0:02:57]} 10. b3 {[%clk 0:03:05]}  c5 {[%clk 0:02:57]} 11. Ne5 {[%clk 0:03:00]}  Nc6 {[%clk 0:02:54]} 12. Nxc6 {[%clk 0:03:00]}  bxc6 {[%clk 0:02:55]} 13. f4 {[%clk 0:02:45]}  a5 {[%clk 0:02:52]} 14. a4 {[%clk 0:02:42]}  Qb6 {[%clk 0:02:48]} 15. Kh1 {[%clk 0:02:36]}  Rfe8 {[%clk 0:02:28]} 16. g4 {[%clk 0:02:35]}  Nd7 {[%clk 0:02:04]} 17. Bb2 {[%clk 0:02:33]}  Bf6 {[%clk 0:01:59]} 18. Bxf6 {[%clk 0:02:18]}  Nxf6 {[%clk 0:01:59]} 19. h4 {[%clk 0:02:19]}  c4 {[%clk 0:01:49]} 20. bxc4 {[%clk 0:02:04]}  dxe4 {[%clk 0:01:47]} 21. Nxe4 {[%clk 0:02:05]}  Bxe4 {[%clk 0:01:43]} 22. Bxe4 {[%clk 0:02:05]}  Nxe4 {[%clk 0:01:34]} 23. Qxe4 {[%clk 0:02:06]}  Qb2 {[%clk 0:01:33]} 24. Qg2 {[%clk 0:01:07]}  c5 {[%clk 0:01:23]} 25. g5 {[%clk 0:00:53]}  h5 {[%clk 0:01:23]} 26. g6 {[%clk 0:00:53]}  Ra7 {[%clk 0:01:17]} 27. Rae1 {[%clk 0:00:47]}  fxg6 {[%clk 0:01:13]} 28. Qxg6 {[%clk 0:00:36]}  Rf7 {[%clk 0:01:13]} 29. Re2 {[%clk 0:00:26]}  Qb7+ {[%clk 0:01:03]} 30. Qg2 {[%clk 0:00:16]}  Qe7 {[%clk 0:01:01]} 31. Qg5 {[%clk 0:00:15]}  Qb7+ {[%clk 0:00:58]} 32. Qg2 {[%clk 0:00:14]}  Qd7 {[%clk 0:00:54]} 33. Re5 {[%clk 0:00:11]}  Ref8 {[%clk 0:00:47]} 34. Rxh5 {[%clk 0:00:08]}  Rxf4 {[%clk 0:00:37]} 35. Rxf4 {[%clk 0:00:09]}  Rxf4 {[%clk 0:00:36]} 36. Qa8+ {[%clk 0:00:10]}  Rf8 {[%clk 0:00:31]} 37. Rh8+ {[%clk 0:00:09]}  Kxh8 {[%clk 0:00:29]} 38. Qxf8+ {[%clk 0:00:10]}  Kh7 {[%clk 0:00:27]} 39. Qxc5 {[%clk 0:00:10]}  Qxa4 {[%clk 0:00:24]} 40. Qh5+ {[%clk 0:00:09]}  Kg8 {[%clk 0:00:21]} 41. Qe5 {[%clk 0:00:02]}  Qxc2 {[%clk 0:00:18]} 42. Qxe6+ {[%clk 0:00:02]}  Kh7 {[%clk 0:00:18]} 43. Qf5+ {[%clk 0:00:02]}  Kg8 {[%clk 0:00:18]} 44. Qd5+ {[%clk 0:00:02]}  Kh7 {[%clk 0:00:18]} 45. c5 {[%clk 0:00:01]}  a4 {[%clk 0:00:17]} 46. c6 {[%clk 0:00:02]}  a3 {[%clk 0:00:17]} 47. Qh5+ {[%clk 0:00:02]}  Kg8 {[%clk 0:00:16]} 48. Qe8+ {[%clk 0:00:02]}  Kh7 {[%clk 0:00:16]} 49. Qe4+ {[%clk 0:00:03]}  Kg8 {[%clk 0:00:16]} 50. Qd5+ {[%clk 0:00:02]}  Kh7 {[%clk 0:00:16]} 51. Qf5+ {[%clk 0:00:02]}  Kg8 {[%clk 0:00:16]} 52. Qc8+ {[%clk 0:00:02]}  Kh7 {[%clk 0:00:16]} 53. c7 {[%clk 0:00:03]}  Qd1+ {[%clk 0:00:16]} 54. Kg2 {[%clk 0:00:03]}  Qe2+ {[%clk 0:00:16]} 55. Kg3 {[%clk 0:00:03]}  Qxd3+ {[%clk 0:00:16]} 56. Kf4 {[%clk 0:00:03]}  Qd4+ {[%clk 0:00:16]} 57. Kg5 {[%clk 0:00:02]}  Qd2+ {[%clk 0:00:16]} 58. Kg4 {[%clk 0:00:02]}  Qd4+ {[%clk 0:00:16]} 59. Kh5 {[%clk 0:00:02]}  Qe5+ {[%clk 0:00:12]} 60. Kg4 {[%clk 0:00:02]}  Qe4+ {[%clk 0:00:12]} 61. Kg3 {[%clk 0:00:02]}  Qe3+ {[%clk 0:00:12]} 62. Kh2 {[%clk 0:00:03]}  Qf2+ {[%clk 0:00:12]} 63. Kh3 {[%clk 0:00:03]}  a2 {[%clk 0:00:11]} 64. Qa8 {[%clk 0:00:02]}  Qf1+ {[%clk 0:00:10]} 65. Kh2 {[%clk 0:00:02]}  Qf4+ {[%clk 0:00:10]} 66. Kh3 {[%clk 0:00:02]}  Qe3+ {[%clk 0:00:09]} 67. Kg2 {[%clk 0:00:02]}  Qd2+ {[%clk 0:00:08]} 68. Kg3 {[%clk 0:00:02]}  Qe1+ {[%clk 0:00:08]} 69. Kh3 {[%clk 0:00:02]}  Qe3+ {[%clk 0:00:07]} 70. Kg2 {[%clk 0:00:02]}  Qd2+ {[%clk 0:00:06]} 71. Kg3 {[%clk 0:00:02]}  Qc3+ {[%clk 0:00:06]} 72. Kh2 {[%clk 0:00:02]}  Qc2+ {[%clk 0:00:05]} 73. Qg2 {[%clk 0:00:02]}  Qxc7+ {[%clk 0:00:05]} 74. Kh3 {[%clk 0:00:02]}  Qd7+ {[%clk 0:00:05]} 75. Kh2 {[%clk 0:00:02]}  Qd6+ {[%clk 0:00:05]} 76. Kh3 {[%clk 0:00:03]}  a1=Q {[%clk 0:00:05]} 77. Qe4+ {[%clk 0:00:02]}  Qg6 {[%clk 0:00:05]} 0-1


[Site "https://www.chess.com"]

[Event "Titled Tuesday Blitz November 22 Late 2022"]
[White "Ferriz Barrios, Andres"]
[Black "Castillo Pena, Patricia Evarista"]
[WhiteFideId "5104467"]
[BlackFideId "6412106"]
[WhiteElo "2265"]
[BlackElo "1919"]
[Result "1-0"]
[Round "10"]
[TimeControl "180+1"]
[Date "2022.11.23"]
[WhiteClock "0:01:48"]
[BlackClock "0:00:21"]

1. d4 {[%clk 0:02:53]}  d5 {[%clk 0:02:58]} 2. Nf3 {[%clk 0:02:52]}  Nf6 {[%clk 0:02:57]} 3. Nbd2 {[%clk 0:02:51]}  e6 {[%clk 0:02:56]} 4. e3 {[%clk 0:02:52]}  Bd6 {[%clk 0:02:54]} 5. Bd3 {[%clk 0:02:51]}  Nbd7 {[%clk 0:02:54]} 6. O-O {[%clk 0:02:52]}  b6 {[%clk 0:02:54]} 7. Qe2 {[%clk 0:02:52]}  Bb7 {[%clk 0:02:54]} 8. Re1 {[%clk 0:02:52]}  Ne4 {[%clk 0:02:53]} 9. Nf1 {[%clk 0:02:51]}  O-O {[%clk 0:02:49]} 10. N3d2 {[%clk 0:02:51]}  f5 {[%clk 0:02:48]} 11. f3 {[%clk 0:02:51]}  Nxd2 {[%clk 0:02:46]} 12. Bxd2 {[%clk 0:02:52]}  e5 {[%clk 0:02:46]} 13. c3 {[%clk 0:02:49]}  e4 {[%clk 0:02:45]} 14. Bc2 {[%clk 0:02:46]}  Qh4 {[%clk 0:02:36]} 15. f4 {[%clk 0:02:46]}  Nf6 {[%clk 0:02:34]} 16. h3 {[%clk 0:02:46]}  a5 {[%clk 0:02:30]} 17. Qf2 {[%clk 0:02:39]}  Qh5 {[%clk 0:02:18]} 18. Ng3 {[%clk 0:02:39]}  Qg6 {[%clk 0:02:16]} 19. Rac1 {[%clk 0:02:35]}  Ba6 {[%clk 0:02:15]} 20. Bb3 {[%clk 0:02:35]}  c5 {[%clk 0:02:07]} 21. c4 {[%clk 0:02:32]}  cxd4 {[%clk 0:02:03]} 22. cxd5 {[%clk 0:02:27]}  dxe3 {[%clk 0:02:00]} 23. Bxe3 {[%clk 0:02:28]}  b5 {[%clk 0:01:57]} 24. a3 {[%clk 0:02:27]}  b4 {[%clk 0:01:53]} 25. a4 {[%clk 0:02:26]}  Rfd8 {[%clk 0:01:46]} 26. Ne2 {[%clk 0:02:26]}  Rdc8 {[%clk 0:01:32]} 27. Nd4 {[%clk 0:02:25]}  Bc5 {[%clk 0:01:26]} 28. Ne6 {[%clk 0:02:21]}  Bxe3 {[%clk 0:01:24]} 29. Qxe3 {[%clk 0:02:22]}  Kh8 {[%clk 0:01:20]} 30. d6 {[%clk 0:02:18]}  Nd7 {[%clk 0:01:17]} 31. Nc7 {[%clk 0:02:14]}  Qxd6 {[%clk 0:00:54]} 32. Nxa8 {[%clk 0:02:11]}  Rxa8 {[%clk 0:00:55]} 33. Red1 {[%clk 0:02:09]}  Bd3 {[%clk 0:00:54]} 34. Bc4 {[%clk 0:02:04]}  Rd8 {[%clk 0:00:53]} 35. Bxd3 {[%clk 0:02:03]}  exd3 {[%clk 0:00:54]} 36. Rxd3 {[%clk 0:02:04]}  Qf8 {[%clk 0:00:50]} 37. Rc7 {[%clk 0:02:00]}  Nf6 {[%clk 0:00:49]} 38. Rxd8 {[%clk 0:01:57]}  Qxd8 {[%clk 0:00:50]} 39. Qe7 {[%clk 0:01:55]}  Qd4+ {[%clk 0:00:38]} 40. Kh1 {[%clk 0:01:50]}  Ng8 {[%clk 0:00:28]} 41. Rc8 {[%clk 0:01:48]}  Qxf4 {[%clk 0:00:22]} 42. Rxg8+ {[%clk 0:01:47]}  Kxg8 {[%clk 0:00:21]} 43. Qe8# {[%clk 0:01:48]} 1-0


[Site "https://www.chess.com"]

[Event "Titled Tuesday Blitz November 22 Late 2022"]
[White "Filgueira, Hernan"]
[Black "Tomaszewski, Kacper"]
[WhiteFideId "101770"]
[BlackFideId "1127373"]
[WhiteElo "2363"]
[BlackElo "2211"]
[Result "0-1"]
[Round "10"]
[TimeControl "180+1"]
[Date "2022.11.23"]
[WhiteClock "0:00:04"]
[BlackClock "0:00:27"]

1. e4 {[%clk 0:03:00]}  d6 {[%clk 0:02:56]} 2. d4 {[%clk 0:02:59]}  Nf6 {[%clk 0:02:56]} 3. Nc3 {[%clk 0:03:00]}  e5 {[%clk 0:02:56]} 4. Nf3 {[%clk 0:03:00]}  Nbd7 {[%clk 0:02:55]} 5. Bc4 {[%clk 0:03:00]}  Be7 {[%clk 0:02:54]} 6. a4 {[%clk 0:02:59]}  O-O {[%clk 0:02:54]} 7. O-O {[%clk 0:02:58]}  h6 {[%clk 0:02:53]} 8. Re1 {[%clk 0:02:58]}  Nh7 {[%clk 0:02:47]} 9. Nd5 {[%clk 0:02:51]}  Bg5 {[%clk 0:02:43]} 10. Nxg5 {[%clk 0:02:37]}  Nxg5 {[%clk 0:02:44]} 11. Qh5 {[%clk 0:02:22]}  c6 {[%clk 0:02:42]} 12. Bxg5 {[%clk 0:02:10]}  Qxg5 {[%clk 0:02:34]} 13. Qxg5 {[%clk 0:02:08]}  hxg5 {[%clk 0:02:34]} 14. Ne7+ {[%clk 0:02:06]}  Kh7 {[%clk 0:02:34]} 15. Ra3 {[%clk 0:01:59]}  Nf6 {[%clk 0:02:11]} 16. dxe5 {[%clk 0:01:52]}  dxe5 {[%clk 0:02:10]} 17. Nxc8 {[%clk 0:01:45]}  Raxc8 {[%clk 0:02:06]} 18. Rd3 {[%clk 0:01:45]}  Kg6 {[%clk 0:02:01]} 19. f3 {[%clk 0:01:43]}  Rcd8 {[%clk 0:02:00]} 20. Red1 {[%clk 0:01:43]}  Rxd3 {[%clk 0:01:59]} 21. Rxd3 {[%clk 0:01:42]}  Re8 {[%clk 0:01:56]} 22. g4 {[%clk 0:01:41]}  Re7 {[%clk 0:01:52]} 23. Rb3 {[%clk 0:01:23]}  a5 {[%clk 0:01:38]} 24. Kf2 {[%clk 0:01:19]}  Rd7 {[%clk 0:01:34]} 25. Ke3 {[%clk 0:01:13]}  Ne8 {[%clk 0:01:32]} 26. Rb6 {[%clk 0:01:08]}  Nd6 {[%clk 0:01:26]} 27. Bd3 {[%clk 0:01:00]}  Kf6 {[%clk 0:01:20]} 28. Rb3 {[%clk 0:00:43]}  Ke7 {[%clk 0:01:19]} 29. Bf1 {[%clk 0:00:38]}  Kd8 {[%clk 0:01:11]} 30. c3 {[%clk 0:00:27]}  Kc7 {[%clk 0:01:08]} 31. Ra3 {[%clk 0:00:26]}  Rd8 {[%clk 0:01:02]} 32. Ra1 {[%clk 0:00:24]}  Rh8 {[%clk 0:01:01]} 33. h3 {[%clk 0:00:24]}  Nc8 {[%clk 0:00:55]} 34. b4 {[%clk 0:00:22]}  axb4 {[%clk 0:00:54]} 35. cxb4 {[%clk 0:00:22]}  Ne7 {[%clk 0:00:47]} 36. a5 {[%clk 0:00:21]}  Ra8 {[%clk 0:00:47]} 37. Bc4 {[%clk 0:00:16]}  f6 {[%clk 0:00:44]} 38. Rd1 {[%clk 0:00:15]}  Rd8 {[%clk 0:00:43]} 39. Rxd8 {[%clk 0:00:14]}  Kxd8 {[%clk 0:00:44]} 40. Kd3 {[%clk 0:00:14]}  Ng6 {[%clk 0:00:43]} 41. Kc3 {[%clk 0:00:14]}  Nf4 {[%clk 0:00:42]} 42. Bf1 {[%clk 0:00:15]}  Kc7 {[%clk 0:00:41]} 43. Kc4 {[%clk 0:00:15]}  Ne6 {[%clk 0:00:39]} 44. Be2 {[%clk 0:00:12]}  Nd4 {[%clk 0:00:38]} 45. Bd1 {[%clk 0:00:13]}  b5+ {[%clk 0:00:34]} 46. axb6+ {[%clk 0:00:13]}  Kxb6 {[%clk 0:00:34]} 47. Kd3 {[%clk 0:00:10]}  Ne6 {[%clk 0:00:34]} 48. Kc4 {[%clk 0:00:09]}  Nf4 {[%clk 0:00:33]} 49. Bb3 {[%clk 0:00:08]}  Nxh3 {[%clk 0:00:33]} 50. Kd3 {[%clk 0:00:08]}  Nf4+ {[%clk 0:00:33]} 51. Kc3 {[%clk 0:00:08]}  Ne2+ {[%clk 0:00:33]} 52. Kd3 {[%clk 0:00:07]}  Nd4 {[%clk 0:00:34]} 53. Bd1 {[%clk 0:00:07]}  Kb5 {[%clk 0:00:34]} 54. Kc3 {[%clk 0:00:08]}  c5 {[%clk 0:00:30]} 55. bxc5 {[%clk 0:00:08]}  Kxc5 {[%clk 0:00:31]} 56. Kd3 {[%clk 0:00:08]}  Kb4 {[%clk 0:00:29]} 57. Ke3 {[%clk 0:00:08]}  Kc3 {[%clk 0:00:29]} 58. Ba4 {[%clk 0:00:08]}  Nc2+ {[%clk 0:00:28]} 59. Kf2 {[%clk 0:00:08]}  Kd2 {[%clk 0:00:28]} 60. Bd7 {[%clk 0:00:08]}  Nd4 {[%clk 0:00:28]} 61. Bc8 {[%clk 0:00:07]}  Ne2 {[%clk 0:00:27]} 62. Bd7 {[%clk 0:00:08]}  Nf4 {[%clk 0:00:26]} 63. Bc8 {[%clk 0:00:08]}  Nd3+ {[%clk 0:00:27]} 64. Kg3 {[%clk 0:00:08]}  Ke3 {[%clk 0:00:27]} 65. Ba6 {[%clk 0:00:04]}  Ne1 {[%clk 0:00:27]} 0-1


[Site "https://www.chess.com"]

[Event "Titled Tuesday Blitz November 22 Late 2022"]
[White "Gadimbayli, Abdulla"]
[Black "Javakhadze, Zurab"]
[WhiteFideId "13404938"]
[BlackFideId "13603647"]
[WhiteElo "2399"]
[BlackElo "2381"]
[Result "1-0"]
[Round "10"]
[TimeControl "180+1"]
[Date "2022.11.22"]
[WhiteClock "0:00:20"]
[BlackClock "0:00:01"]

1. Nf3 {[%clk 0:03:00]}  d5 {[%clk 0:03:00]} 2. g3 {[%clk 0:03:01]}  Nf6 {[%clk 0:03:00]} 3. Bg2 {[%clk 0:03:01]}  e6 {[%clk 0:03:01]} 4. O-O {[%clk 0:03:02]}  Be7 {[%clk 0:03:02]} 5. d3 {[%clk 0:03:03]}  O-O {[%clk 0:03:02]} 6. Nbd2 {[%clk 0:03:04]}  c5 {[%clk 0:03:01]} 7. c3 {[%clk 0:03:04]}  Nc6 {[%clk 0:03:01]} 8. e4 {[%clk 0:03:01]}  b6 {[%clk 0:03:01]} 9. Qe2 {[%clk 0:02:59]}  Ba6 {[%clk 0:02:58]} 10. e5 {[%clk 0:02:57]}  Nd7 {[%clk 0:02:56]} 11. Re1 {[%clk 0:02:57]}  b5 {[%clk 0:02:52]} 12. h4 {[%clk 0:02:51]}  b4 {[%clk 0:02:52]} 13. h5 {[%clk 0:02:51]}  bxc3 {[%clk 0:02:47]} 14. bxc3 {[%clk 0:02:52]}  Qa5 {[%clk 0:02:46]} 15. Bb2 {[%clk 0:02:34]}  Qb5 {[%clk 0:02:46]} 16. Rab1 {[%clk 0:02:25]}  Qxd3 {[%clk 0:02:45]} 17. Qd1 {[%clk 0:02:26]}  Qf5 {[%clk 0:02:35]} 18. c4 {[%clk 0:02:26]}  Qxh5 {[%clk 0:02:23]} 19. cxd5 {[%clk 0:02:14]}  exd5 {[%clk 0:02:23]} 20. e6 {[%clk 0:02:15]}  Nb6 {[%clk 0:02:13]} 21. exf7+ {[%clk 0:01:56]}  Rxf7 {[%clk 0:02:12]} 22. Re6 {[%clk 0:01:57]}  Nb4 {[%clk 0:02:01]} 23. Ne5 {[%clk 0:01:30]}  Qf5 {[%clk 0:01:40]} 24. Rxb6 {[%clk 0:01:12]}  Qxf2+ {[%clk 0:01:34]} 25. Kh1 {[%clk 0:01:10]}  axb6 {[%clk 0:01:32]} 26. a3 {[%clk 0:01:10]}  Rf6 {[%clk 0:01:15]} 27. Ng4 {[%clk 0:01:07]}  Qxg3 {[%clk 0:00:52]} 28. Bxf6 {[%clk 0:01:02]}  gxf6 {[%clk 0:00:25]} 29. axb4 {[%clk 0:01:02]}  Rd8 {[%clk 0:00:23]} 30. Nh6+ {[%clk 0:01:00]}  Kf8 {[%clk 0:00:14]} 31. Nf5 {[%clk 0:00:43]}  Qf4 {[%clk 0:00:14]} 32. Qh5 {[%clk 0:00:39]}  Bd6 {[%clk 0:00:11]} 33. Rf1 {[%clk 0:00:30]}  Bxf1 {[%clk 0:00:10]} 34. Nxf1 {[%clk 0:00:29]}  Rd7 {[%clk 0:00:07]} 35. bxc5 {[%clk 0:00:26]}  bxc5 {[%clk 0:00:07]} 36. N1e3 {[%clk 0:00:26]}  d4 {[%clk 0:00:06]} 37. Nf1 {[%clk 0:00:25]}  Qg5 {[%clk 0:00:05]} 38. Qf3 {[%clk 0:00:22]}  Be5 {[%clk 0:00:04]} 39. Qa8+ {[%clk 0:00:22]}  Kf7 {[%clk 0:00:04]} 40. Bd5+ {[%clk 0:00:20]}  Kg6 {[%clk 0:00:03]} 41. Qe8+ {[%clk 0:00:19]}  Kxf5 {[%clk 0:00:02]} 42. Qxd7+ {[%clk 0:00:20]}  Kf4 {[%clk 0:00:03]} 43. Qh3 {[%clk 0:00:20]}  Qg4 {[%clk 0:00:01]} 44. Qh6+ {[%clk 0:00:20]} 1-0


[Site "https://www.chess.com"]

[Event "Titled Tuesday Blitz November 22 Late 2022"]
[White "Gareyev, Timur"]
[Black "Pranav, V"]
[WhiteFideId "14200937"]
[BlackFideId "25060783"]
[WhiteElo "2552"]
[BlackElo "2430"]
[Result "0-1"]
[Round "10"]
[TimeControl "180+1"]
[Date "2022.11.22"]
[WhiteClock "0:00:02"]
[BlackClock "0:00:04"]

1. e4 {[%clk 0:02:37]}  e5 {[%clk 0:02:55]} 2. f4 {[%clk 0:02:37]}  Bc5 {[%clk 0:02:54]} 3. Nf3 {[%clk 0:02:36]}  d6 {[%clk 0:02:55]} 4. Nc3 {[%clk 0:02:34]}  Nc6 {[%clk 0:02:53]} 5. Na4 {[%clk 0:02:33]}  Bb6 {[%clk 0:02:48]} 6. Bc4 {[%clk 0:02:26]}  Nf6 {[%clk 0:02:44]} 7. Nxb6 {[%clk 0:02:20]}  axb6 {[%clk 0:02:44]} 8. O-O {[%clk 0:02:17]}  Bg4 {[%clk 0:02:33]} 9. d3 {[%clk 0:02:14]}  Nd4 {[%clk 0:02:22]} 10. fxe5 {[%clk 0:02:09]}  Bxf3 {[%clk 0:02:21]} 11. gxf3 {[%clk 0:02:03]}  dxe5 {[%clk 0:02:21]} 12. a3 {[%clk 0:01:37]}  O-O {[%clk 0:02:14]} 13. f4 {[%clk 0:01:31]}  b5 {[%clk 0:02:05]} 14. Ba2 {[%clk 0:01:17]}  exf4 {[%clk 0:01:52]} 15. Bxf4 {[%clk 0:01:16]}  Ra6 {[%clk 0:01:29]} 16. Kh1 {[%clk 0:01:15]}  c5 {[%clk 0:01:15]} 17. c3 {[%clk 0:00:59]}  Ne6 {[%clk 0:01:09]} 18. Be5 {[%clk 0:00:59]}  Nd7 {[%clk 0:01:08]} 19. Bg3 {[%clk 0:00:55]}  Qe7 {[%clk 0:01:05]} 20. Qh5 {[%clk 0:00:46]}  Nf6 {[%clk 0:00:53]} 21. Qf5 {[%clk 0:00:46]}  Rd8 {[%clk 0:00:50]} 22. Rad1 {[%clk 0:00:45]}  Nf8 {[%clk 0:00:37]} 23. e5 {[%clk 0:00:40]}  c4 {[%clk 0:00:18]} 24. dxc4 {[%clk 0:00:23]}  Rxd1 {[%clk 0:00:17]} 25. Rxd1 {[%clk 0:00:23]}  Ne8 {[%clk 0:00:13]} 26. cxb5 {[%clk 0:00:22]}  Rg6 {[%clk 0:00:14]} 27. Rf1 {[%clk 0:00:19]}  Ne6 {[%clk 0:00:14]} 28. Bd5 {[%clk 0:00:20]}  h5 {[%clk 0:00:11]} 29. Qxh5 {[%clk 0:00:18]}  N8c7 {[%clk 0:00:11]} 30. c4 {[%clk 0:00:18]}  Qd7 {[%clk 0:00:09]} 31. Qf3 {[%clk 0:00:17]}  Nxd5 {[%clk 0:00:05]} 32. cxd5 {[%clk 0:00:15]}  Ng5 {[%clk 0:00:04]} 33. Qd3 {[%clk 0:00:09]}  Rh6 {[%clk 0:00:04]} 34. Bf4 {[%clk 0:00:08]}  Rh3 {[%clk 0:00:02]} 35. Qd2 {[%clk 0:00:02]}  Qxb5 {[%clk 0:00:02]} 36. Qg2 {[%clk 0:00:02]}  Rh5 {[%clk 0:00:02]} 37. Bxg5 {[%clk 0:00:02]}  Rxg5 {[%clk 0:00:03]} 38. Qf3 {[%clk 0:00:02]}  Rxe5 {[%clk 0:00:01]} 39. Qxf7+ {[%clk 0:00:01]}  Kh7 {[%clk 0:00:02]} 40. Qf3 {[%clk 0:00:01]}  Rg5 {[%clk 0:00:02]} 41. Qh3+ {[%clk 0:00:01]}  Kg8 {[%clk 0:00:02]} 42. Qe6+ {[%clk 0:00:02]}  Kh7 {[%clk 0:00:03]} 43. Qe4+ {[%clk 0:00:02]}  Rg6 {[%clk 0:00:03]} 44. Qf3 {[%clk 0:00:02]}  Rf6 {[%clk 0:00:03]} 45. Qd3+ {[%clk 0:00:02]}  Qxd3 {[%clk 0:00:03]} 46. Rxf6 {[%clk 0:00:02]}  gxf6 {[%clk 0:00:04]} 0-1


[Site "https://www.chess.com"]